Cogmind - Beta 13 @@@ ROGUE MODE // 2024.04.09 @ 18:02:27 Player: Carpathian Result: Destroyed by Y-45 Defender with Heavy Assault Rifle Performance ------------- Evolutions (1) 500 Regions Visited (4) 800 Robots Destroyed (25) 125 Value Destroyed (653) 653 Prototype IDs (1) 20 Alien Tech Used (0) 0 Bonus (177) 177 TOTAL SCORE: 2275 Bonus ------- Follower Combat Kills 189 Friendly Fire -12 Cogmind --------- Core Integrity 0/400 Matter 300/300 Energy 100/100 System Corruption 0% Temperature Cool (9) Movement Core (150) Ox2 Location -9/Storage Parts ------- > --- POWER (1) -------- (None) > --- PROPULSION (2) --- (None) > --- UTILITY (4) ------ Small Storage Unit Improved Signal Interpreter > --- WEAPON (2) ------- Katana > --- INVENTORY (8) ---- Ion Engine Advanced Beam Rifle Heavy Assault Rifle Peak State ------------ > --- POWER ------------ Ion Engine > --- PROPULSION ------- Aluminum Leg Aluminum Leg > --- UTILITY ---------- Small Storage Unit Improved Signal Interpreter > --- WEAPON ----------- Katana > --- INVENTORY -------- Improved Ion Engine Advanced Beam Rifle [Rating: 10] Favorites ----------- Power Ion Engine Engine Ion Engine Propulsion Aluminum Leg Treads Light Treads Leg Aluminum Leg Utility Small Storage Unit Storage Small Storage Unit Processor Targeting Computer Weapon Medium Laser Energy Gun Medium Laser Ballistic Gun Assault Rifle Special Weapon Mining Laser Slashing Weapon Katana Build | -11 -10 -10 -9 -9 ------- Run | Yrd Mat Min Mat Sto Slots Evolved 2 | . . . 2 . Power . | . . . . . Propulsion . | . . . . . Utility 2 | . . . 2 . Weapon . | . . . . . Parts Attached 26 | 6 4 8 . 8 Power 5 | 1 1 1 . 2 Engine 5 | 1 1 1 . 2 Core . | . . . . . Reactor . | . . . . . Propulsion 6 | 2 . 2 . 2 Treads 2 | . . 2 . . Leg 4 | 2 . . . 2 Wheel . | . . . . . Hover . | . . . . . Flight . | . . . . . Utility 3 | 1 1 . . 1 Device . | . . . . . Storage 1 | 1 . . . . Processor 2 | . 1 . . 1 Hackware . | . . . . . Protection . | . . . . . Artifact . | . . . . . Weapon 12 | 2 2 5 . 3 Energy Gun 8 | 1 2 3 . 2 Energy Cannon . | . . . . . Ballistic Gun 1 | 1 . . . . Ballistic Cannon . | . . . . . Launcher . | . . . . . Special Weapon 2 | . . 2 . . Impact Weapon . | . . . . . Slashing Weapon 1 | . . . . 1 Piercing Weapon . | . . . . . Special Melee Weapon . | . . . . . Unidentified Prototypes 1 | . . . . 1 Parts Lost 9 | . . 2 . 7 Power 2 | . . . . 2 Propulsion 4 | . . 1 . 3 Utility 1 | . . 1 . . Weapon 2 | . . . . 2 Highest Loss Streak 4 | . . 1 . 4 To Critical Strikes . | . . . . . Average Slot Usage (%) 79 | . 91 88 66 52 Engine 12 | . 14 14 11 8 Treads 10 | . . 13 22 5 Leg 12 | . 28 12 . 6 Storage 13 | . 14 14 11 11 Processor 4 | . 6 4 . 6 Energy Gun 20 | . 20 25 22 8 Ballistic Gun 1 | . 7 . . . Special Weapon 1 | . . 2 . . Slashing Weapon 1 | . . . . 7 Naked Turns . | . . . . . Heaviest Build 14 | 11 13 14 14 14 Greatest Support 40 | 20 20 40 40 40 Greatest Overweight (x) 4 | . . 1 . 4 Average Overweight (x) . | . . . . . Largest Inventory Capacity 8 | 8 8 8 8 8 Average Capacity 7 | 7 8 8 8 8 Most Carried 7 | 4 7 7 5 5 Average Carried 4 | 2 4 5 4 3 Final Capacity 8 | 8 8 8 8 8 Final Carried 7 | 4 7 3 5 3 Class Distribution -------------------- 100% | Mutant Dominant Class ---------------- Mutant | -10/Materials Mutant | -10/Mines Mutant | -9/Materials Mutant | -9/Storage Resources | -11 -10 -10 -9 -9 ----------- Run | Yrd Mat Min Mat Sto Matter Collected 487 | 200 14 188 10 75 Remotely . | . . . . . Salvage Created 871 | . 94 102 105 570 Parts 55 | . 8 5 4 38 Haulers Intercepted . | . . . . . Recyclers Shooed 1 | . 1 . . . Parts Field Recycled . | . . . . . Retrieved Matter . | . . . . . Parts Self-Destructed . | . . . . . Prevented . | . . . . . Kills | -11 -10 -10 -9 -9 ------- Run | Yrd Mat Min Mat Sto Combat Hostiles Destroyed 24 | . 6 4 2 12 Melee 9 | . . . . 9 Guns 13 | . 6 3 2 2 Classes Destroyed 7 | . 1 2 1 3 Worker 2 | . . . . 2 Watcher 1 | . . . . 1 Swarmer 8 | . 6 . . 2 Grunt 7 | . . 2 . 5 Duelist 1 | . . . . 1 Sentry 6 | . . . 2 4 Assembled 2 | . . 2 . . Best Kill Streak 7 | . 3 1 2 7 Combat Bots Only 4 | . 3 1 2 4 Max Kills in Single Turn 1 | . 1 1 1 1 Gunslinging . | . . . . . Exploded . | . . . . . Melee 1 | . . . . 1 Uniques/NPCs Destroyed . | . . . . . Combat | -11 -10 -10 -9 -9 -------- Run | Yrd Mat Min Mat Sto Hostile Shots Fired 166 | . 32 18 15 101 Missed 38 | . 9 2 6 21 Damage Taken 1629 | . 183 267 127 1052 Core 510 | . 57 47 . 406 Absorbed by Shields . | . . . . . Core Remaining (%) 79 | 100 . 58 . . Volleys Fired 73 | . 18 32 8 15 Largest 2 | . 2 2 2 2 Hottest 150 | . 80 150 100 101 Shots Fired 126 | . 36 50 16 24 Gun 112 | . 36 36 16 24 Cannon . | . . . . . Launcher . | . . . . . Special 14 | . . 14 . . Kinetic 11 | . 11 . . . Thermal 115 | . 25 50 16 24 Explosive . | . . . . . Electromagnetic . | . . . . . Robot Hit Streak 12 | . 2 6 10 12 Robot Miss Streak 5 | . 5 3 2 2 Penetration Max . | . . . . . Secondary Targets 4 | . 1 . 1 2 Max Gunslinging Chain 1 | . 1 . 1 1 Shots Hit Robots 84 | . 11 25 12 36 Core Hits 35 | . 7 8 3 17 Critical Kills . | . . . . . Critical Parts Destroyed . | . . . . . Critical Strikes 3 | . . 1 1 1 Burn 3 | . . 1 1 1 Melee Attacks 24 | . . . . 24 Impact . | . . . . . Slashing 24 | . . . . 24 Piercing . | . . . . . Sneak Attacks 2 | . . . . 2 Combat Hostiles . | . . . . . Follow-up Attacks . | . . . . . Damage Inflicted 1519 | . 154 312 161 892 Guns 878 | . 154 312 161 251 Cannons . | . . . . . Explosions . | . . . . . Melee 641 | . . . . 641 Ramming . | . . . . . Kinetic 37 | . 37 . . . Thermal 841 | . 117 312 161 251 Explosive . | . . . . . Electromagnetic . | . . . . . Impact . | . . . . . Slashing 641 | . . . . 641 Piercing . | . . . . . Highest Corruption 4 | . 2 4 . . Average Corruption 2 | . 1 3 . . Corruption Purged . | . . . . . Corruption Blocked . | . . . . . Effects 14 | . . 14 . . Message Errors 4 | . . 4 . . Matter Fused 1 | . . 1 . . Heat Flow Errors 3 | . . 3 . . Energy Discharges 3 | . . 3 . . Data Loss (minor) 1 | . . 1 . . Misfires 2 | . . 2 . . Overload Shots . | . . . . . Overflow Damage 3 | . . . . 3 Projectiles . | . . . . . Explosions . | . . . . . Melee 3 | . . . . 3 Knockbacks . | . . . . . Impact . | . . . . . Kinetic . | . . . . . Secondary . | . . . . . Self-Inflicted Damage . | . . . . . Shots . | . . . . . Rammed . | . . . . . Targets Rammed . | . . . . . Kicked . | . . . . . Crushed . | . . . . . Highest Temperature 428 | . 126 428 202 165 Average Temperature 98 | . 64 112 82 71 Received Heat Transfer 738 | . . 300 36 402 Effects 3 | . . 3 . . Interference 3 | . . 3 . . Siege Activations . | . . . . . Robots Corrupted . | . . . . . Combat Hostiles . | . . . . . Parts Fried . | . . . . . Impact Corruptions . | . . . . . Robots Melted 2 | . . 1 . 1 Combat Hostiles 2 | . . 1 . 1 Parts Melted 4 | . 1 . 3 . Heat Transferred 2546 | . 275 999 555 717 Parts Sabotaged . | . . . . . Parts Stolen . | . . . . . Parts Stripped . | . . . . . Power Chain Reactions . | . . . . . Alert | -11 -10 -10 -9 -9 ------- Run | Yrd Mat Min Mat Sto Peak Influence 323 | . 171 168 72 323 Initial 66 | . . 66 15 29 Average 74 | . 67 63 44 131 Maximum Alert Level 1 | . . . . 1 Low Security (%) 95 | 100 100 100 100 77 Level 1 4 | . . . . 22 Level 2 . | . . . . . Level 3 . | . . . . . Level 4 . | . . . . . Level 5 . | . . . . . High Security . | . . . . . Max Security . | . . . . . Squads Dispatched 6 | . 2 . . 4 Investigation . | . . . . . Extermination . | . . . . . Reinforcement 3 | . 2 . . 1 Assault . | . . . . . Garrison 3 | . . . . 3 Intercept . | . . . . . Searches Triggered . | . . . . . Construction Impeded . | . . . . . Haulers Reinforced . | . . . . . Active Scanning Responses . | . . . . . Cargo Convoy Interrupts . | . . . . . Stealth | -11 -10 -10 -9 -9 --------- Run | Yrd Mat Min Mat Sto Distress Signals 4 | . 3 . . 1 Communications Jammed . | . . . . . Distress Signals . | . . . . . Times Spotted 45 | . 10 15 2 18 Peak Tracking Total 6 | . 4 4 2 6 Tactical Retreats 1 | . . 1 . . Traps | -11 -10 -10 -9 -9 ------- Run | Yrd Mat Min Mat Sto Traps Triggered 2 | . 2 . . . Indirectly . | . . . . . Trap Hack Attempts . | . . . . . Triggered . | . . . . . Disarmed . | . . . . . Reprogrammed . | . . . . . Reused . | . . . . . Traps Extracted . | . . . . . Installed . | . . . . . Triggered . | . . . . . Machines | -11 -10 -10 -9 -9 ---------- Run | Yrd Mat Min Mat Sto Machines Disabled 1 | . . 1 . . Max in Single Turn 1 | . . 1 . . Machines Repaired . | . . . . . Machines Dismantled . | . . . . . Machines Sabotaged . | . . . . . Overloaded Fab Kills . | . . . . . Hacking | -11 -10 -10 -9 -9 --------- Run | Yrd Mat Min Mat Sto Machines Accessed 1 | . . . . 1 Terminals 1 | . . . . 1 Fabricators . | . . . . . Repair Stations . | . . . . . Recycling Units . | . . . . . Scanalyzers . | . . . . . Garrison Access . | . . . . . Total Hacks 4 | . . . . 4 Successful 2 | . . . . 2 Failed 2 | . . . . 2 Catastrophic . | . . . . . Database Lockouts . | . . . . . Manual . | . . . . . Terminals 4 | . . . . 4 Fabricators . | . . . . . Repair Stations . | . . . . . Recycling Units . | . . . . . Scanalyzers . | . . . . . Garrison Access . | . . . . . Terminal Hacks 2 | . . . . 2 Record 1 | . . . . 1 Transport Status 1 | . . . . 1 Fabricator Hacks . | . . . . . Repair Station Hacks . | . . . . . Recycling Unit Hacks . | . . . . . Scanalyzer . | . . . . . Garrison Access Hacks . | . . . . . Unauthorized Hacks . | . . . . . Terminals . | . . . . . Fabricators . | . . . . . Repair Stations . | . . . . . Recycling Units . | . . . . . Scanalyzers . | . . . . . Garrison Access . | . . . . . Data Cores Recovered . | . . . . . Used . | . . . . . Hacking Detections 1 | . . . . 1 Full Trace Events . | . . . . . Feedback Events . | . . . . . Feedback Blocked . | . . . . . Robot Schematics Acquired . | . . . . . Robots Built . | . . . . . Authchips . | . . . . . Time . | . . . . . Total Robot Build Rating . | . . . . . Part Schematics Acquired . | . . . . . Parts Built . | . . . . . Authchips . | . . . . . Time . | . . . . . Total Part Build Rating . | . . . . . Parts Repaired . | . . . . . Time . | . . . . . Parts Recycled . | . . . . . Recycled Matter . | . . . . . Retrieved Matter . | . . . . . Retrieved Components . | . . . . . Parts Scanalyzed . | . . . . . Part Schematics Acquired . | . . . . . Parts Damaged . | . . . . . Bothacking | -11 -10 -10 -9 -9 ------------ Run | Yrd Mat Min Mat Sto Used RIF Installer . | . . . . . Robots Hacked . | . . . . . Non-combat . | . . . . . Combat . | . . . . . Robot Hacks Applied . | . . . . . Relay Couplers Released . | . . . . . Fabnet Peak Effective % . | . . . . . Robots Rewired . | . . . . . Allies Hacked . | . . . . . Hacks Repelled . | . . . . . Allies | -11 -10 -10 -9 -9 -------- Run | Yrd Mat Min Mat Sto Total Allies 5 | . . 5 . . Largest Group 4 | . . 4 2 1 Highest-Rated Group 68 | . . 68 24 8 Highest-Rated Ally 31 | . . 31 16 8 Total Orders . | . . . . . Ally Attacks 61 | . . 51 3 7 Total Damage 815 | . . 761 34 20 Kills 10 | . . 10 . . Allies Corrupted . | . . . . . Allies Melted 1 | . . 1 . . Intel | -11 -10 -10 -9 -9 ------- Run | Yrd Mat Min Mat Sto Robot Analysis Total . | . . . . . Derelict Logs Recovered 2 | . . 2 . . Drone Launches . | . . . . . Drone Recoveries . | . . . . . Exploration | -11 -10 -10 -9 -9 ------------- Run | Yrd Mat Min Mat Sto Turns Passed 1587 | 66 243 817 132 329 Spaces Moved 859 | 51 143 460 67 138 Core 56 | 15 . . . 41 Treads 340 | . . 232 67 41 Legs 463 | 36 143 228 . 56 Wheels . | . . . . . Hover . | . . . . . Flight . | . . . . . Fastest Speed 50 | 50 120 120 160 120 Average Speed 141 | 99 120 144 160 157 Slowest Speed 250 | 120 120 190 160 250 Overloaded Moves . | . . . . . Propulsion Burnouts . | . . . . . Robots Hopped . | . . . . . Cave-ins Triggered . | . . . . . Exploration Rate (%) 28 | 5 27 83 9 19 Regions Visited 4 Branch Regions 2 Pre-discovered Areas 1 | . . 1 . . Known Exits Taken . | . . . . . Unknown Exits Taken 4 | 1 1 1 1 . Scrap Searched 1 | . . 1 . . Spaces Dug . | . . . . . Terrain Destroyed 2 | . . 2 . . Melee . | . . . . . Projectile 2 | . . 2 . . AOE . | . . . . . Terrain Rammed . | . . . . . Walls Destroyed . | . . . . . Machines Disabled . | . . . . . Actions | -11 -10 -10 -9 -9 --------- Run | Yrd Mat Min Mat Sto Total 1045 | 66 178 535 76 190 Wait 35 | . 4 31 . . Move 855 | 50 142 459 66 138 Hop . | . . . . . Pick Up 24 | 10 7 1 2 4 Fast Attach . | . . . . . Attach 14 | 6 1 1 . 6 Detach . | . . . . . Swap 12 | . 3 7 . 2 Drop 8 | . 3 4 . 1 Fire 73 | . 18 32 8 15 Melee 24 | . . . . 24 Ram . | . . . . . Kick . | . . . . . Crush . | . . . . . Escape Stasis . | . . . . . Rewire . | . . . . . Trap . | . . . . . Miscellaneous . | . . . . . Route ------- -11/Scrapyard -10/Materials -10/Mines -9/Materials (discovered 2 exits: Min / *Sto) -9/Storage History --------- Turn | Location | Event 6 | -11/Scrapyard | Discovered new exit (range 16) 67 | -11/Scrapyard | Entered Materials 221 | -10/Materials | Discovered new exit (range 16) 302 | -10/Materials | Build established: Mutant 310 | -10/Materials | Entered Mines 533 | -10/Mines | Excavation squad dispatched 533 | -10/Mines | A large section of the Mines collapsed 783 | -10/Mines | Excavation squad dispatched 850 | -10/Mines | Joined a pair of Derelicts in attacking an 0b10 outpost 1033 | -10/Mines | Excavation squad dispatched 1041 | -10/Mines | Assisted by bots powering up and referring to "LRC-V3" 1100 | -10/Mines | Discovered new exit (range 9) 1127 | -10/Mines | Entered Materials 1127 | -9/Materials | Accompanied by 2 allies 1127 | -9/Materials | Evolved 2 slots: Utility x2 1128 | -9/Materials | Identified exit to Mines 1165 | -9/Materials | Discovered new exit (range 12) 1259 | -9/Materials | Entered Storage 1259 | -9/Storage | Accompanied by 1 ally 1323 | -9/Storage | Garrison activated, responded to threat 1383 | -9/Storage | Lost 4 parts (1p1n2w) 1498 | -9/Storage | Core integrity fell below 50% 1576 | -9/Storage | Core integrity fell below 20% 1588 | -9/Storage | Destroyed by Y-45 Defender with Heavy Assault Rifle Last Messages --------------- 01496_ R-06 Scavenger collects Ion Engine. 01498_ Destroyed Heat Sink. 01502_ Aluminum Leg destroyed. 01508_ Y-45 Defender destroyed. 01509_ R-06 Scavenger collects Heat Sink. 01514_ G-34 Mercenary destroyed. 01515_ R-06 Scavenger collects Aluminum Leg. 01518_ R-06 Scavenger collects Sml. Laser. 01520_ Acquired 10 matter. 01521_ R-06 Scavenger collects Heat Sink. 01528_ Acquired Hvy. Assault Rifle. 01534_ S-10 Pest destroyed. 01544_ R-06 Scavenger collects Lgt. Ion Engine. 01549_ R-06 Scavenger collects Flight Unit. 01553_ R-06 Scavenger collects Heat Sink. 01566_ Y-45 Defender destroyed. 01575_ Imp. Ion Engine destroyed. 01580_ R-06 Scavenger collects Hvy. Assault Rifle. 01587_ Y-45 Defender destroyed. Map ----- +----------------------------------------------------+ | ?????????????????????????# """ #####"T"#######???? | | ?????????????????????????# ## # #???? | | ?????????????????????????###+#### # #???? | | ?????????????????????????+ + # #???? | | ?????????????????????????### # """" # #???? | | ??????????????????#????????# # """" # #???? | | ??????????????????# ??????# + """" + #???? | | ??????????????????#? ?????# #### """" # #???? | | ??????????? #####+##+#####%#??# # #???? | | ????????????? #??# # #???? | | ????????????????# %%%#?########### ##??? | | ????????????????# %% %### # #??? | | ???????????? + %!%%%+% # #??? | | ????????????????######+##r###### + T #??? | | ???????????????????? ??# #????#* # #??? | | ?????????????????? ???#%#????# # #??? | | ?????????????????# ????# #????# # ####??? | | ?????????????????# ?????# #????# # #?????? | | ???????????? ???#?????## ##???# # #?????? | | ????????????? ##### #???# # #?????? | | ????????????? T #???########## #?????? | | ?????????????????# ##### ![#????????????# #?????? | | ???????????????????????##%##????????????# #?????? | | ????????????????????????#=#?????????????# #?????? | | ????????????????????????#*#?????????????+ #?????? | | ????????????????????????#@#?????????????# #?????? | | ????????????????????????#%#?????????????? ??????? | | ????????????????????????#[#?????????????? ??????? | | ????????????????????????=! ?????????????? ??????? | | ???????????????????????? ??????????????????????? | | ???????????????????????? ??????????????????????? | | ???????????????????????? ??????????????????????? | | ???????????????????????## Y"?????????????????????? | | ????????????????????????# "?????????????????????? | | ????????????????????????? ?????????????????????? | | ????????????????????????? ?????????????????????? | | ????????????????????????? #?????????????????????? | | ????????????????????????? Y?????????????????????? | | ????????????????????????? ?????????????????????? | | ????????????????????????? ?????????????????????? | | ????????????????????????? ?????????????????????? | | ?????????????????????????????????????????????????? | | ?????????????????????????????????????????????????? | | ?????????????????????????????????????????????????? | | ?????????????????????????????????????????????????? | | ?????????????????????????????????????????????????? | | ?????????????????????????????????????????????????? | | ?????????????????????????????????????????????????? | | ?????????????????????????????????????????????????? | | ?????????????????????????????????????????????????? | +----------------------------------------------------+ Best States ------------- Heat Dissipation 28 Energy Generation 12 Energy Capacity 265 Matter Stores 300 Matter Capacity 300 Sight Range 16 Terrain Scan Density 10 Evasion (%) 55 Targeting Accuracy 5 Recoil Reduction 2 Item Schematics ----------------- None Robot Schematics ------------------ None Fabricated ------------ Nothing Alien Tech Used ----------------- None Achievements -------------- None Challenges ------------ None Game ------ Seed EncryptedDecoyAutogun Manual? 0 Play Time 00:11:21 Cumulative 17.8 hours Start 2024.04.09 @ 17:53:04 End 2024.04.09 @ 18:02:27 Sessions 1 Manual Loads 0 Difficulty Rogue Special Mode None Game No. 101 Rogue 101 Adventurer 0 Explorer 0 Win Type - Total 0 Types 0/0/0/0/0/0/0/0/0 Lore% 7 Gallery% 22 Achievement% 16 Wizard Run 0 Options --------- Layout 1 ASCII 0 Keyboard 0 Movement Mouse Keybinds 0 Fullscreen 2 Font 32/Cog Map View 50x35 Zoom Use 0% Tactical HUD 1 Map Filters NONE Filters NONE Steam 1 RUN: ac4f26e6-f983-4299-9312-56d2d3eafaa9